[Event "Open Nuevo Centro. Jornada 2"]
[Site "Chess.com"]
[Date "2020.06.26"]
[Round "9"]
[White "Martinez Hernandez, Paula"]
[Black "Amorós Pérez, Manuel David"]
[Result "1-0"]
[WhiteElo "2016"]
[BlackElo "1656"]
[TimeControl "180+2"]
[EndTime "12:10:04 PDT"]
[Termination "Victoria de pauliximartinez por abandono"]

1. e4 {[%clk 0:03:01.9]} 1... d5 {[%clk 0:02:59.6]} 2. exd5 {[%clk 0:03:02.4]}
2... Qxd5 {[%clk 0:03:00.5]} 3. Nc3 {[%clk 0:03:03.3]} 3... Qd8 {[%clk
0:03:01.6]} 4. d4 {[%clk 0:03:02.9]} 4... Bf5 {[%clk 0:03:02.6]} 5. Bf4 {[%clk
0:03:03.8]} 5... e6 {[%clk 0:03:02.8]} 6. Bc4 {[%clk 0:03:03]} 6... c6 {[%clk
0:03:03.8]} 7. Nf3 {[%clk 0:03:03.9]} 7... Bd6 {[%clk 0:03:04.7]} 8. Bxd6 {[%clk
0:03:00.6]} 8... Qxd6 {[%clk 0:03:05.8]} 9. Qd2 {[%clk 0:03:00.6]} 9... Nf6
{[%clk 0:03:06.5]} 10. O-O-O {[%clk 0:03:00.4]} 10... Nbd7 {[%clk 0:03:07.2]}
11. Rhe1 {[%clk 0:03:00.3]} 11... O-O {[%clk 0:03:07.6]} 12. h3 {[%clk
0:03:01.4]} 12... Nb6 {[%clk 0:03:06.8]} 13. Bd3 {[%clk 0:03:01.7]} 13... Bxd3
{[%clk 0:03:07.3]} 14. Qxd3 {[%clk 0:03:02.9]} 14... Nbd5 {[%clk 0:03:08.4]} 15.
Nxd5 {[%clk 0:03:01]} 15... cxd5 {[%clk 0:03:08.5]} 16. Ne5 {[%clk 0:03:01.8]}
16... Nd7 {[%clk 0:03:09]} 17. f4 {[%clk 0:03:02.5]} 17... Nxe5 {[%clk
0:03:10.2]} 18. fxe5 {[%clk 0:03:03.3]} 18... Qc6 {[%clk 0:03:05.3]} 19. Re3
{[%clk 0:03:03.9]} 19... Rac8 {[%clk 0:03:06.1]} 20. Rd2 {[%clk 0:03:04.6]}
20... Qc4 {[%clk 0:03:06.8]} 21. c3 {[%clk 0:03:00.6]} 21... b5 {[%clk
0:03:05.9]} 22. Qe2 {[%clk 0:02:55.3]} 22... b4 {[%clk 0:03:01.9]} 23. Qg4
{[%clk 0:02:52.2]} 23... bxc3 {[%clk 0:02:56.1]} 24. bxc3 {[%clk 0:02:51.7]}
24... Qf1+ {[%clk 0:02:52.4]} 25. Rd1 {[%clk 0:02:50.2]} 25... Qc4 {[%clk
0:02:42.3]} 26. Rd2 {[%clk 0:02:49]} 26... Qf1+ {[%clk 0:02:42.4]} 27. Kc2
{[%clk 0:02:42.9]} 27... Qc4 {[%clk 0:02:36.5]} 28. Kd1 {[%clk 0:02:43.1]} 28...
Rb8 {[%clk 0:02:21.9]} 29. Rc2 {[%clk 0:02:28.6]} 29... Rb1+ {[%clk 0:02:07.5]}
30. Kd2 {[%clk 0:02:27.5]} 30... Qf1 {[%clk 0:01:57.9]} 31. Qe2 {[%clk
0:02:26.4]} 31... Qxe2+ {[%clk 0:01:54.1]} 32. Kxe2 {[%clk 0:02:26.9]} 32...
Rfb8 {[%clk 0:01:55]} 33. Kd2 {[%clk 0:02:19.2]} 33... R8b2 {[%clk 0:01:47.6]}
34. c4 {[%clk 0:02:16.1]} 34... dxc4 {[%clk 0:01:44.5]} 35. Rc3 {[%clk
0:02:16.9]} 35... Rxc2+ {[%clk 0:01:42.8]} 36. Rxc2 {[%clk 0:02:17.7]} 36... Rb4
{[%clk 0:01:36.5]} 37. Kc3 {[%clk 0:02:17.5]} 37... a5 {[%clk 0:01:36.7]} 38. a3
{[%clk 0:02:15.7]} 38... Ra4 {[%clk 0:01:34.8]} 39. Kb2 {[%clk 0:02:16.6]} 39...
f6 {[%clk 0:01:27.5]} 40. g4 {[%clk 0:02:13.8]} 40... fxe5 {[%clk 0:01:27.8]}
41. dxe5 {[%clk 0:02:14.9]} 41... Kf7 {[%clk 0:01:28.8]} 42. Rf2+ {[%clk
0:02:15.4]} 42... Ke7 {[%clk 0:01:29.7]} 43. Rf3 {[%clk 0:02:04.3]} 43... h6
{[%clk 0:01:28.2]} 44. Rc3 {[%clk 0:02:01.2]} 44... Kd7 {[%clk 0:01:22.8]} 45.
Kc2 {[%clk 0:02:01.6]} 45... Ke7 {[%clk 0:01:22.8]} 46. Kd2 {[%clk 0:02:02.7]}
46... Kd7 {[%clk 0:01:23.7]} 47. Ke3 {[%clk 0:02:03.9]} 47... Ke7 {[%clk
0:01:24.6]} 48. Kd4 {[%clk 0:02:04.9]} 48... Kd7 {[%clk 0:01:25.3]} 49. Kc5
{[%clk 0:02:05.6]} 49... Kc7 {[%clk 0:00:10.5]} 50. Kb5 {[%clk 0:02:04.6]} 50...
Rxa3 {[%clk 0:00:07]} 51. Rxa3 {[%clk 0:02:05]} 1

[Event "Open Nuevo Centro. Jornada 2"]
[Site "Chess.com"]
[Date "2020.06.26"]
[Round "9"]
[White "Yuste Valenzuela, Alejandro"]
[Black "Roca Cruz, Rafael"]
[Result "1-0"]
[WhiteElo "1842"]
[BlackElo "1702"]
[TimeControl "180+2"]
[EndTime "12:10:09 PDT"]
[Termination "Victoria de alejandrito290 por tiempo"]

1. e4 {[%clk 0:03:01.1]} 1... c5 {[%clk 0:02:59.4]} 2. Nf3 {[%clk 0:03:01.7]}
2... e6 {[%clk 0:02:58.9]} 3. d4 {[%clk 0:03:03]} 3... cxd4 {[%clk 0:02:59.9]}
4. Nxd4 {[%clk 0:03:04.9]} 4... Nf6 {[%clk 0:03:00.4]} 5. Bd3 {[%clk 0:03:04.7]}
5... Nc6 {[%clk 0:03:00.5]} 6. Nxc6 {[%clk 0:03:05]} 6... dxc6 {[%clk
0:02:59.1]} 7. O-O {[%clk 0:03:06.9]} 7... e5 {[%clk 0:02:59.6]} 8. f4 {[%clk
0:03:05.6]} 8... Bc5+ {[%clk 0:02:56.4]} 9. Kh1 {[%clk 0:03:04.2]} 9... Ng4
{[%clk 0:02:55.3]} 10. Qe2 {[%clk 0:02:52.5]} 10... Nxh2 {[%clk 0:02:45]} 11. g3
{[%clk 0:02:30]} 11... Nxf1 {[%clk 0:02:42.9]} 12. Qxf1 {[%clk 0:02:31.9]} 12...
O-O {[%clk 0:02:23.7]} 13. Nc3 {[%clk 0:02:29.5]} 13... Qf6 {[%clk 0:01:15.4]}
14. Kg2 {[%clk 0:02:17]} 14... Qh6 {[%clk 0:01:12.3]} 15. f5 {[%clk 0:02:00.4]}
15... Be3 {[%clk 0:01:05.9]} 16. Bxe3 {[%clk 0:01:51.5]} 16... Qxe3 {[%clk
0:01:06.5]} 17. Re1 {[%clk 0:01:50.3]} 17... Qb6 {[%clk 0:00:58.4]} 18. Qf3
{[%clk 0:01:44.9]} 18... Qxb2 {[%clk 0:00:48.6]} 19. Ne2 {[%clk 0:01:31.6]}
19... Qb4 {[%clk 0:00:27.5]} 20. Rh1 {[%clk 0:01:30.5]} 20... Qe7 {[%clk
0:00:21.5]} 21. Qh5 {[%clk 0:01:23.5]} 21... h6 {[%clk 0:00:22]} 22. Rh4 {[%clk
0:01:15.4]} 22... Qg5 {[%clk 0:00:22.6]} 23. Qf3 {[%clk 0:01:10.3]} 23... Qe7
{[%clk 0:00:04]} 24. g4 {[%clk 0:00:35.2]} 24... f6 {[%clk 0:00:05.3]} 25. Qh3
{[%clk 0:00:27.9]} 25... Rf7 {[%clk 0:00:06.1]} 26. Bc4 {[%clk 0:00:28]} 1

[Event "Open Nuevo Centro. Jornada 2"]
[Site "Chess.com"]
[Date "2020.06.26"]
[Round "9"]
[White "Yeste Campos, Manuel"]
[Black "Valero Martinez, Óscar"]
[Result "0-1"]
[WhiteElo "915"]
[BlackElo "1190"]
[TimeControl "180+2"]
[EndTime "12:10:14 PDT"]
[Termination "Victoria de Oscar12000 por tiempo"]

1. e4 {[%clk 0:03:01.9]} 1... e5 {[%clk 0:02:59.6]} 2. Nf3 {[%clk 0:03:01.7]}
2... Nc6 {[%clk 0:02:59.7]} 3. Bb5 {[%clk 0:03:02.8]} 3... Nf6 {[%clk
0:02:58.7]} 4. O-O {[%clk 0:03:02.5]} 4... Bc5 {[%clk 0:02:54.2]} 5. Re1 {[%clk
0:02:58.3]} 5... Ng4 {[%clk 0:02:49]} 6. Rf1 {[%clk 0:02:50.8]} 6... O-O {[%clk
0:02:44.1]} 7. h3 {[%clk 0:02:49.3]} 7... Bxf2+ {[%clk 0:02:31.5]} 8. Rxf2
{[%clk 0:02:46.9]} 8... Nxf2 {[%clk 0:02:32.4]} 9. Kxf2 {[%clk 0:02:48.4]} 9...
Nb4 {[%clk 0:02:26.3]} 10. d4 {[%clk 0:02:44.4]} 10... Qf6 {[%clk 0:02:18.6]}
11. dxe5 {[%clk 0:02:39.5]} 11... Qg6 {[%clk 0:02:12.8]} 12. Bxd7 {[%clk
0:02:25.6]} 12... Qxe4 {[%clk 0:02:04.9]} 13. Bxc8 {[%clk 0:02:09.3]} 13...
Raxc8 {[%clk 0:02:02]} 14. Ng5 {[%clk 0:01:56.9]} 14... Qxc2+ {[%clk 0:01:49.2]}
15. Qxc2 {[%clk 0:01:20.8]} 15... Nxc2 {[%clk 0:01:48.7]} 16. Bf4 {[%clk
0:01:08.1]} 16... Nxa1 {[%clk 0:01:46]} 17. Nc3 {[%clk 0:01:08.3]} 17... Rcd8
{[%clk 0:01:44.4]} 18. Ke1 {[%clk 0:01:08.7]} 18... Nc2+ {[%clk 0:01:42.8]} 19.
Ke2 {[%clk 0:01:07.2]} 19... Nd4+ {[%clk 0:01:40.2]} 20. Ke3 {[%clk 0:01:06.4]}
20... Nf5+ {[%clk 0:01:40]} 21. Ke4 {[%clk 0:01:06.5]} 21... Ne7 {[%clk
0:01:20.8]} 22. e6 {[%clk 0:01:05.7]} 22... fxe6 {[%clk 0:01:12.8]} 23. Nxe6
{[%clk 0:01:06.3]} 23... Rxf4+ {[%clk 0:00:48]} 24. Kxf4 {[%clk 0:01:03]} 24...
Rd2 {[%clk 0:00:44.9]} 25. b3 {[%clk 0:00:57]} 25... Rxg2 {[%clk 0:00:42.8]} 26.
Nxc7 {[%clk 0:00:58.6]} 26... Rf2+ {[%clk 0:00:41.8]} 27. Ke3 {[%clk 0:00:11.4]}
27... Rc2 {[%clk 0:00:42]} 28. Kd3 {[%clk 0:00:11.1]} 28... Rc1 {[%clk
0:00:40.2]} 29. Kd2 {[%clk 0:00:09.8]} 29... Rh1 {[%clk 0:00:39.7]} 30. N3d5
{[%clk 0:00:08.8]} 30... Nxd5 {[%clk 0:00:39.1]} 0

[Event "Open Nuevo Centro. Jornada 2"]
[Site "Chess.com"]
[Date "2020.06.26"]
[Round "9"]
[White "Rodriguez Rodriguez, Joan David "]
[Black "Gómez Alonso, Óscar"]
[Result "0-1"]
[WhiteElo "1597"]
[BlackElo "1847"]
[TimeControl "180+2"]
[EndTime "12:10:18 PDT"]
[Termination "Victoria de osgo78 por tiempo"]

1. d4 {[%clk 0:03:01.9]} 1... Nf6 {[%clk 0:03:00.7]} 2. c4 {[%clk 0:03:02.6]}
2... e6 {[%clk 0:03:01.5]} 3. Nc3 {[%clk 0:03:03.6]} 3... c5 {[%clk 0:03:02.4]}
4. d5 {[%clk 0:02:59.7]} 4... d6 {[%clk 0:03:03]} 5. e4 {[%clk 0:03:00.1]} 5...
exd5 {[%clk 0:03:03.8]} 6. cxd5 {[%clk 0:03:01.5]} 6... g6 {[%clk 0:03:03.9]} 7.
Bd3 {[%clk 0:03:01.9]} 7... Bg7 {[%clk 0:03:04.8]} 8. Nf3 {[%clk 0:03:02.4]}
8... O-O {[%clk 0:03:05.7]} 9. h3 {[%clk 0:03:03.2]} 9... a6 {[%clk 0:03:05.8]}
10. a4 {[%clk 0:03:03.7]} 10... b6 {[%clk 0:03:04.9]} 11. O-O {[%clk 0:03:03.7]}
11... Re8 {[%clk 0:03:04.2]} 12. Bg5 {[%clk 0:03:01.4]} 12... Nbd7 {[%clk
0:03:03.1]} 13. Bf4 {[%clk 0:02:53.7]} 13... Nf8 {[%clk 0:03:00.6]} 14. Re1
{[%clk 0:02:49.2]} 14... Nh5 {[%clk 0:02:59.7]} 15. Bh2 {[%clk 0:02:48.3]} 15...
Qc7 {[%clk 0:02:42.7]} 16. e5 {[%clk 0:02:33]} 16... dxe5 {[%clk 0:01:42.2]} 17.
Be4 {[%clk 0:02:31.8]} 17... f5 {[%clk 0:01:35.4]} 18. d6 {[%clk 0:02:20.1]}
18... Qa7 {[%clk 0:01:33.4]} 19. Bxa8 {[%clk 0:02:19.3]} 19... Qxa8 {[%clk
0:01:33.6]} 20. Nxe5 {[%clk 0:02:16.7]} 20... Bb7 {[%clk 0:01:26.1]} 21. Nf3
{[%clk 0:01:42.8]} 21... Rd8 {[%clk 0:01:25.4]} 22. Re7 {[%clk 0:01:40.5]} 22...
Nd7 {[%clk 0:01:15.1]} 23. Qe2 {[%clk 0:01:34.1]} 23... Ndf6 {[%clk 0:01:04.2]}
24. Qe6+ {[%clk 0:01:04.3]} 24... Kh8 {[%clk 0:01:04.6]} 25. Re1 {[%clk
0:00:47.9]} 25... Ne4 {[%clk 0:00:49.4]} 26. Nxe4 {[%clk 0:00:28.8]} 26... Bxe4
{[%clk 0:00:49.8]} 27. Ng5 {[%clk 0:00:16.8]} 27... h6 {[%clk 0:00:43.4]} 28.
Nf7+ {[%clk 0:00:17.6]} 28... Kh7 {[%clk 0:00:43]} 29. d7 {[%clk 0:00:13.3]}
29... Bd5 {[%clk 0:00:36.6]} 30. Qd6 {[%clk 0:00:12]} 30... Bxg2 {[%clk
0:00:30.6]} 0

[Event "Open Nuevo Centro. Jornada 2"]
[Site "Chess.com"]
[Date "2020.06.26"]
[Round "9"]
[White "Sverdlik Roldán, Elías"]
[Black "Perrot, Fabien "]
[Result "1-0"]
[WhiteElo "940"]
[BlackElo "977"]
[TimeControl "180+2"]
[EndTime "12:10:31 PDT"]
[Termination "Victoria de Elias903 por tiempo"]

1. e4 {[%clk 0:03:01.1]} 1... e5 {[%clk 0:03:00.5]} 2. Nf3 {[%clk 0:02:57.7]}
2... Nc6 {[%clk 0:03:01.3]} 3. d3 {[%clk 0:02:58]} 3... Nf6 {[%clk 0:02:59.3]}
4. Nc3 {[%clk 0:02:58]} 4... Bb4 {[%clk 0:02:59.8]} 5. Bd2 {[%clk 0:02:58.3]}
5... h6 {[%clk 0:03:00.3]} 6. a3 {[%clk 0:02:59]} 6... Ba5 {[%clk 0:03:00.8]} 7.
Nd5 {[%clk 0:02:55.4]} 7... Bb6 {[%clk 0:02:55]} 8. Nxf6+ {[%clk 0:02:47.2]}
8... Qxf6 {[%clk 0:02:54.5]} 9. Be3 {[%clk 0:02:42.4]} 9... Bxe3 {[%clk
0:02:48]} 10. fxe3 {[%clk 0:02:41]} 10... d6 {[%clk 0:02:44]} 11. d4 {[%clk
0:02:37.3]} 11... Bg4 {[%clk 0:02:37.1]} 12. Be2 {[%clk 0:02:36.1]} 12... Bxf3
{[%clk 0:02:11.1]} 13. Bxf3 {[%clk 0:02:30.5]} 13... Qh4+ {[%clk 0:02:11.2]} 14.
g3 {[%clk 0:02:23.4]} 14... Qh3 {[%clk 0:02:00.8]} 15. dxe5 {[%clk 0:02:17.6]}
15... dxe5 {[%clk 0:01:32.7]} 16. Bg4 {[%clk 0:01:58]} 16... Qg2 {[%clk
0:01:12.2]} 17. Rf1 {[%clk 0:01:39.4]} 17... Qxe4 {[%clk 0:00:46.2]} 18. Bf3
{[%clk 0:01:37.8]} 18... Qxe3+ {[%clk 0:00:42.2]} 19. Qe2 {[%clk 0:01:34.8]}
19... Qxe2+ {[%clk 0:00:36.6]} 20. Bxe2 {[%clk 0:01:35.8]} 20... Nd4 {[%clk
0:00:31.5]} 21. Rd1 {[%clk 0:01:31.1]} 21... Nxe2 {[%clk 0:00:18.4]} 22. Kxe2
{[%clk 0:01:31.8]} 22... Rd8 {[%clk 0:00:19.7]} 23. g4 {[%clk 0:01:29.1]} 23...
Rxd1 {[%clk 0:00:19.6]} 24. Rxd1 {[%clk 0:01:29]} 24... O-O {[%clk 0:00:19.3]}
25. Rd7 {[%clk 0:01:29.5]} 25... Rc8 {[%clk 0:00:17.5]} 26. h4 {[%clk
0:01:28.9]} 26... f6 {[%clk 0:00:16.9]} 27. g5 {[%clk 0:01:28.6]} 27... hxg5
{[%clk 0:00:16.3]} 28. hxg5 {[%clk 0:01:29.2]} 28... Kf8 {[%clk 0:00:14.4]} 29.
g6 {[%clk 0:01:28.3]} 29... b6 {[%clk 0:00:10.7]} 30. Rf7+ {[%clk 0:01:16.3]}
30... Kg8 {[%clk 0:00:09.2]} 31. Ke3 {[%clk 0:01:10.8]} 31... a5 {[%clk
0:00:08]} 32. Ke4 {[%clk 0:01:11]} 32... c6 {[%clk 0:00:06.1]} 33. Kf5 {[%clk
0:01:11.7]} 33... Rf8 {[%clk 0:00:05.3]} 34. Rc7 {[%clk 0:01:05.8]} 34... c5
{[%clk 0:00:04.9]} 35. Rb7 {[%clk 0:01:06.1]} 35... Rf7 {[%clk 0:00:02.1]} 36.
gxf7+ {[%clk 0:00:44.3]} 1

[Event "Open Nuevo Centro. Jornada 2"]
[Site "Chess.com"]
[Date "2020.06.26"]
[Round "9"]
[White "Donate Peris, Jose Manuel"]
[Black "Martínez Albelda, Mariela"]
[Result "0-1"]
[WhiteElo "1559"]
[BlackElo "1043"]
[TimeControl "180+2"]
[EndTime "12:10:37 PDT"]
[Termination "Victoria de laranita303 por tiempo"]

1. d4 {[%clk 0:03:01.9]} 1... d5 {[%clk 0:02:55.6]} 2. c4 {[%clk 0:03:01.5]}
2... e6 {[%clk 0:02:51.8]} 3. Nc3 {[%clk 0:03:00.4]} 3... Nf6 {[%clk 0:02:51]}
4. Nf3 {[%clk 0:03:00.2]} 4... Nc6 {[%clk 0:02:51.4]} 5. e3 {[%clk 0:02:59.7]}
5... Bb4 {[%clk 0:02:51.8]} 6. a3 {[%clk 0:02:58.4]} 6... Bxc3+ {[%clk
0:02:51.4]} 7. bxc3 {[%clk 0:02:58.9]} 7... Ne4 {[%clk 0:02:49.2]} 8. Qc2 {[%clk
0:02:55.9]} 8... O-O {[%clk 0:02:41.8]} 9. Bd3 {[%clk 0:02:54.4]} 9... Nf6
{[%clk 0:02:35.1]} 10. O-O {[%clk 0:02:48.3]} 10... Qe7 {[%clk 0:02:24.8]} 11.
c5 {[%clk 0:02:37.8]} 11... e5 {[%clk 0:02:24.4]} 12. Bb5 {[%clk 0:02:28]} 12...
exd4 {[%clk 0:02:23.3]} 13. cxd4 {[%clk 0:02:25.1]} 13... a6 {[%clk 0:02:20.8]}
14. Bd3 {[%clk 0:02:23.5]} 14... Qe6 {[%clk 0:02:09.9]} 15. Ng5 {[%clk
0:02:19.5]} 15... Qg4 {[%clk 0:01:54]} 16. Nxh7 {[%clk 0:01:57.4]} 16... Nxh7
{[%clk 0:01:52.4]} 17. Bxh7+ {[%clk 0:01:50.3]} 17... Kh8 {[%clk 0:01:52.6]} 18.
Bd3 {[%clk 0:01:49]} 18... Ne7 {[%clk 0:01:45.2]} 19. f4 {[%clk 0:01:46]} 19...
Bf5 {[%clk 0:01:43.5]} 20. Bxf5 {[%clk 0:01:42.7]} 20... Qxf5 {[%clk 0:01:42.9]}
21. Qxf5 {[%clk 0:01:41.5]} 21... Nxf5 {[%clk 0:01:43.5]} 22. g4 {[%clk
0:01:40.4]} 22... Nh4 {[%clk 0:01:42.7]} 23. Kf2 {[%clk 0:01:37.8]} 23... Ng6
{[%clk 0:01:41.2]} 24. Kg3 {[%clk 0:01:37.9]} 24... Rfe8 {[%clk 0:01:38.7]} 25.
h4 {[%clk 0:01:36.6]} 25... Ne7 {[%clk 0:01:38.5]} 26. h5 {[%clk 0:01:32.4]}
26... g6 {[%clk 0:01:38.9]} 27. hxg6 {[%clk 0:01:32.5]} 27... fxg6 {[%clk
0:01:39.8]} 28. Rh1+ {[%clk 0:01:32.8]} 28... Kg7 {[%clk 0:01:39.4]} 29. Bd2
{[%clk 0:01:32.8]} 29... Kf6 {[%clk 0:01:38.7]} 30. Rh7 {[%clk 0:01:26.6]} 30...
g5 {[%clk 0:01:35]} 31. fxg5+ {[%clk 0:01:19.6]} 31... Kxg5 {[%clk 0:01:34.8]}
32. Rah1 {[%clk 0:01:15.9]} 32... Ng6 {[%clk 0:01:21.8]} 33. e4+ {[%clk
0:01:09]} 33... Kf6 {[%clk 0:01:15.3]} 34. exd5 {[%clk 0:01:02.3]} 34... Rh8
{[%clk 0:01:14.7]} 35. Rxh8 {[%clk 0:00:59.5]} 35... Rxh8 {[%clk 0:01:14.3]} 36.
Rf1+ {[%clk 0:00:36.5]} 36... Kg7 {[%clk 0:01:12.9]} 37. Bf4 {[%clk 0:00:34.1]}
37... Nxf4 {[%clk 0:01:12.6]} 38. Rxf4 {[%clk 0:00:33.4]} 38... Rd8 {[%clk
0:01:13.1]} 39. Rf5 {[%clk 0:00:33.4]} 39... c6 {[%clk 0:01:12.8]} 40. d6 {[%clk
0:00:33.5]} 40... Rd7 {[%clk 0:01:11.4]} 41. Re5 {[%clk 0:00:32.8]} 41... Kf6
{[%clk 0:01:09.4]} 42. g5+ {[%clk 0:00:32.2]} 42... Kg6 {[%clk 0:01:08]} 0

[Event "Open Nuevo Centro. Jornada 2"]
[Site "Chess.com"]
[Date "2020.06.26"]
[Round "9"]
[White "Casado Andreu, David"]
[Black "Gutierrez Marco, Dario"]
[Result "1-0"]
[WhiteElo "1641"]
[BlackElo "1883"]
[TimeControl "180+2"]
[EndTime "12:10:38 PDT"]
[Termination "Victoria de dave6635 por tiempo"]

1. e4 {[%clk 0:03:01.9]} 1... c5 {[%clk 0:03:00.7]} 2. Nf3 {[%clk 0:03:02.1]}
2... e6 {[%clk 0:03:02]} 3. d4 {[%clk 0:03:02.8]} 3... cxd4 {[%clk 0:03:03.9]}
4. Nxd4 {[%clk 0:03:04.1]} 4... Nc6 {[%clk 0:03:05.8]} 5. Nc3 {[%clk 0:03:05.2]}
5... Qc7 {[%clk 0:03:05.2]} 6. Be2 {[%clk 0:02:56.7]} 6... Nf6 {[%clk
0:03:04.3]} 7. Be3 {[%clk 0:02:56.9]} 7... a6 {[%clk 0:03:04.6]} 8. O-O {[%clk
0:02:55.2]} 8... Be7 {[%clk 0:03:05.7]} 9. Na4 {[%clk 0:02:28.8]} 9... b5 {[%clk
0:03:05.3]} 10. Nxc6 {[%clk 0:02:28.4]} 10... Qxc6 {[%clk 0:03:03.9]} 11. Nc3
{[%clk 0:02:10.9]} 11... Nxe4 {[%clk 0:02:56.8]} 12. Nxe4 {[%clk 0:02:09.8]}
12... Qxe4 {[%clk 0:02:54.6]} 13. Bf3 {[%clk 0:02:10.6]} 13... Qg6 {[%clk
0:02:28.1]} 14. Bxa8 {[%clk 0:02:01.7]} 14... O-O {[%clk 0:02:16.8]} 15. Bf3
{[%clk 0:01:58.4]} 15... f5 {[%clk 0:02:10.5]} 16. Qd2 {[%clk 0:01:58]} 16... d5
{[%clk 0:01:57.6]} 17. Qe2 {[%clk 0:01:58.5]} 17... f4 {[%clk 0:01:54.4]} 18.
Bh5 {[%clk 0:01:48.2]} 18... Qg5 {[%clk 0:01:52.3]} 19. Bd2 {[%clk 0:01:41.3]}
19... e5 {[%clk 0:01:50]} 20. g3 {[%clk 0:01:12.4]} 20... g6 {[%clk 0:01:36.9]}
21. Bf3 {[%clk 0:01:09.3]} 21... e4 {[%clk 0:01:37.4]} 22. Bh1 {[%clk
0:00:56.4]} 22... Bc5 {[%clk 0:01:32.5]} 23. b4 {[%clk 0:00:44.9]} 23... Ba7
{[%clk 0:01:31]} 24. h4 {[%clk 0:00:37.5]} 24... Qe5 {[%clk 0:01:18.5]} 25. Bxf4
{[%clk 0:00:36.3]} 25... Rxf4 {[%clk 0:01:18.8]} 26. gxf4 {[%clk 0:00:37.2]}
26... Qxf4 {[%clk 0:01:20.7]} 27. Bg2 {[%clk 0:00:31.1]} 27... Bb8 {[%clk
0:01:20.1]} 28. Rfd1 {[%clk 0:00:23.2]} 28... Bg4 {[%clk 0:00:50.1]} 29. f3
{[%clk 0:00:21.7]} 29... Qh2+ {[%clk 0:00:47.5]} 30. Kf1 {[%clk 0:00:21.4]}
30... exf3 {[%clk 0:00:38.2]} 31. Bxf3 {[%clk 0:00:21.9]} 31... Bh3+ {[%clk
0:00:37]} 32. Ke1 {[%clk 0:00:22.8]} 32... Qg1+ {[%clk 0:00:17.9]} 33. Kd2
{[%clk 0:00:23.1]} 1

[Event "Open Nuevo Centro. Jornada 2"]
[Site "Chess.com"]
[Date "2020.06.26"]
[Round "9"]
[White "Valverde Caballero, Rafael"]
[Black "Donate Moreno, Silvia"]
[Result "0-1"]
[WhiteElo "1871"]
[BlackElo "1801"]
[TimeControl "180+2"]
[EndTime "12:10:43 PDT"]
[Termination "Victoria de 2camarones por tiempo"]

1. c4 {[%clk 0:03:01.9]} 1... g6 {[%clk 0:02:59.6]} 2. Nc3 {[%clk 0:03:02.4]}
2... Bg7 {[%clk 0:03:00.5]} 3. e4 {[%clk 0:03:04.3]} 3... d6 {[%clk 0:02:57.7]}
4. d4 {[%clk 0:03:05.6]} 4... Nf6 {[%clk 0:02:58.5]} 5. Be2 {[%clk 0:03:05.8]}
5... O-O {[%clk 0:02:56.4]} 6. g4 {[%clk 0:03:05.9]} 6... e5 {[%clk 0:02:52.1]}
7. d5 {[%clk 0:03:06.8]} 7... a5 {[%clk 0:02:39.9]} 8. h4 {[%clk 0:03:05.9]}
8... Nfd7 {[%clk 0:02:35.9]} 9. h5 {[%clk 0:03:02.2]} 9... Re8 {[%clk
0:02:25.2]} 10. hxg6 {[%clk 0:03:00.7]} 10... fxg6 {[%clk 0:02:25.4]} 11. Bh6
{[%clk 0:02:57.9]} 11... Bh8 {[%clk 0:02:25.7]} 12. Qd2 {[%clk 0:02:56]} 12...
Nc5 {[%clk 0:02:23.9]} 13. Nh3 {[%clk 0:01:47.7]} 13... Nbd7 {[%clk 0:02:21.1]}
14. Ng5 {[%clk 0:01:15.2]} 14... Nf6 {[%clk 0:02:21]} 15. f3 {[%clk 0:00:55.2]}
15... Qe7 {[%clk 0:02:04.1]} 16. Nh3 {[%clk 0:00:55.5]} 16... c6 {[%clk
0:01:55.9]} 17. Bg5 {[%clk 0:00:54.9]} 17... Qc7 {[%clk 0:01:38.6]} 18. O-O-O
{[%clk 0:00:52.6]} 18... a4 {[%clk 0:01:25.7]} 19. Kb1 {[%clk 0:00:51.8]} 19...
Rd8 {[%clk 0:01:21.9]} 20. Rh2 {[%clk 0:00:42.3]} 20... Bg7 {[%clk 0:01:21.6]}
21. Rdh1 {[%clk 0:00:40.8]} 21... a3 {[%clk 0:00:53.8]} 22. b3 {[%clk
0:00:41.1]} 22... Rd7 {[%clk 0:00:47.1]} 23. Bh6 {[%clk 0:00:37.8]} 23... Bh8
{[%clk 0:00:47]} 24. Bg5 {[%clk 0:00:35.3]} 24... Rf7 {[%clk 0:00:28.3]} 25. Be3
{[%clk 0:00:34.8]} 25... Na6 {[%clk 0:00:25.9]} 26. Ng5 {[%clk 0:00:35.7]} 26...
Rg7 {[%clk 0:00:26.3]} 27. Nh3 {[%clk 0:00:27.2]} 27... Nb4 {[%clk 0:00:22.8]}
28. Bg5 {[%clk 0:00:25.8]} 28... Rf7 {[%clk 0:00:22]} 29. Bxf6 {[%clk
0:00:22.7]} 29... Bxf6 {[%clk 0:00:22.4]} 30. Ng5 {[%clk 0:00:21.6]} 30... Rg7
{[%clk 0:00:21.2]} 31. dxc6 {[%clk 0:00:17.2]} 31... bxc6 {[%clk 0:00:22]} 32.
Nh3 {[%clk 0:00:14.5]} 32... Be6 {[%clk 0:00:18.5]} 33. Qh6 {[%clk 0:00:14.3]}
33... Na6 {[%clk 0:00:17.5]} 0